{"text_format":"2","workbook":"xlsx","n_sheets":1,"sheets":["grills"],"not_rendered":{"charts":0,"images":0,"macros":0,"external_links":0,"defined_names":0,"comments":0,"pivot_tables":0},"unopened":[],"bounds":{"document_bytes":16777216,"sheet_cells":100000,"run_cost":"one","rows_first":2000,"rows_last":500,"rows_between":2000,"halvings":0,"cell_chars":16384,"cell_head_chars":4096},"cells_cut":0,"cells_raw":0,"read":"whole","date_system":"1900"}

{"sheet":"grills","index":0,"n_rows":37,"n_cols":7,"rows_kept":37,"cut":false,"hidden":false,"merged":[[2,1,2,6],[1,1,1,6],[36,1,36,4],[23,0,23,2],[12,0,12,2],[3,1,3,2],[34,2,34,5],[21,2,21,5],[10,2,10,5]]}
[]
[null,"Supply and Fix grills as illustrated in a drawing attached herewith to the ground floor Windows and Doors in the College of Law Buildings, Juba, CES."]
[null,"Note:                                                                                                                                                                                                                                    *For double  leaf doors the grills shall be similar with the same so that it will allow easy  manipulation; and  standard locks shall be provided .                                                                                                                                                                                            *Grills will not be provided to lecture hall windows.                                                                                                                                  *The pattern of grills and the materials to be used should be refered on the sketch attahed hereto while rating the activities.                                                                                                                                                                                                                   *The grills will be connected with respective walls either by  stainless steel concrete anchor fischers ; or chiesiling walls,  embedding so into the space, filling by concrete/mortar, smooth finish and make the spot similar with the existing wall depending on the suitability of the work.                                                                                                                         *When you divide the quanties below by the respective windows or doors area, computed using the respective dimensions, you will get the number of the same."]
[null,"A: Library Building"]
[null,"S.No.","Description","Unit","Qty","Unit price (USD)","Amount (USD)"]
[null,1,"W-1L of width 1.0m and height 1.31m, single leaf, opening outside.","m2",35.06,0,{"$f":"E6*F6","v":0}]
[null,2,"W-2L(toilet) of width 0.6m and height 0.8m, single leaf ,opening outside.","m2",3.88,0,{"$f":"E7*F7","v":0}]
[null,3,"W-3L of width 1.5m and height 1.31m, double leaf sliding windows .","m2",8.86,0,0]
[null,4,"D-1L(double leaf) of width 1.5m and height 2.2m opening outside.","m2",4.3,0,0]
[null,5,"D-2L(double leaf) of width 2.4m and height 2.2m opening outside. Note that the grill shound be double leaf and the system should suit the door.","m2",6.28,0,0]
[null,null,"Library building to summary",null,null,null,{"$f":"SUM(G6:G10)","v":0}]
[]
["B: Adminstration Building"]
[]
[null,"S.No.","Description","Unit","Qty","Unit price (USD)","Amount (USD)"]
[null,1,"W-1A of width 1.0m and height 1.5m, single leaf opening outside.","m2",26.5,0,{"$f":"E16*F16","v":0}]
[null,2,"W-2A(toilet) of width 0.6m and height 1m, single leaf opening outside.","m2",8.8000000000000007,0,{"$f":"E17*F17","v":0}]
[null,3,"W-3A of width 1.5m and height 1.5m, double leaf sliding windows .","m2",41.5,0,0]
[null,4,"D-1A (double leaf, main entrance) of width 2.4m and height 2.35m opening outside.","m2",6.64,0,0]
[null,5,"D-2A (double leaf, entrance from west side) of width 1.5m and height 2.35m opening outside. Note that the grill should be double leaf and suit the door.","m2",4.2,0,0]
[null,6,"D-3A (double leaf, entrance from the southern side) of width 1.5m and height 2.35m opening outside. Note that the grill should be double leaf and suit the door.","m2",4.2,0,0]
[null,null,"Administartion Building to Summary",null,null,null,{"$f":"SUM(G16:G21)","v":0}]
[]
["C: College of Law Building/Lecture Halls/"]
[]
[null,"S.No.","Description","Unit","Qty","Unit price  (USD)","Amount (USD)"]
[null,1,"W-1C of width 1.0m and height 1.52m, single leaf opening outside.","m2",19.239999999999998,0,{"$f":"E27*F27","v":0}]
[null,2,"W-2C (toilet) of width 0.6m and height 1.03m, single leaf opening outside.","m2",7.18,0,{"$f":"E28*F28","v":0}]
[null,3,"W-3C of width 2.0m and height 1.52m, double leaf sliding windows .","m2",55.72,0,0]
[null,4,"W-4C of width 1.5m and height 1.53m, double leaf sliding windows .","m2",28.54,0,0]
[null,5,"W-5C of width 2.42m and height 1.53m, double leaf sliding windows .","m2",8.41,0,0]
[null,6,"D-1C (double leaf, main entrance) of width 2.4m and height 2.4m opening outside.","m2",12.52,0,0]
[null,7,"D-2C (entrance from west side) of width 0.95m and height 2.35m opening outside. Note that the grill should  suit with the door.","m2",2.8,0,0]
[null,8,"D-2C (entrance from the southern side) of width .95m and height 2.25m opening outside. Note that the grill should with suit the door.","m2",2.8,0,0]
[null,null,"College of Law Building to Summary",null,null,null,{"$f":"SUM(G27:G34)","v":0}]
[]
[null,"Total Summary to Grills",{"$nulls":4},{"$f":"G35+G22+G11","v":0}]